[Event "ROU-chT Women Superliga 2018"]
[Site "Sovata"]
[Date "2018.11.28"]
[Round "4"]
[White "Sgircea, Silvia-Raluca"]
[Black "Popa, Catalina-Elena"]
[Result "1-0"]
[ECO "A15"]
[WhiteElo "2259"]
[BlackElo "1746"]
[Annotator "NA RC"]
[PlyCount "81"]
[EventDate "2018.11.24"]
[EventType "team-tourn"]
[EventCountry "ROU"]
[SourceTitle "playchess.com"]
[Source "ChessBase"]
[SourceQuality "1"]
[TimeControl "40/5400+30:1800+30"]

1. c4 {[%emt 0:00:00]} Nf6 {[%emt 0:00:43]} 2. Nf3 {[%emt 0:00:13]} d6 {[%emt 0:00:08]} 3. g3 {[%emt 0:02:49]} e5 {[%emt 0:01:23]} 4. d3 {[%emt 0:00:46]} Nc6 {[%emt 0:01:32]} 5. Bg2 {[%emt 0:00:25]} Be7 {[%emt 0:00:14]} 6. O-O {[%emt 0:00:16]} O-O {[%emt 0:00:04]} 7. Nc3 {[%emt 0:00:11]} h6 {[%emt 0:01:56]} 8. Rb1 {[%emt 0:01:31]} Be6 {[%emt 0:01:30] A29: English Opening: Four Knights Variation with 4 g3} 9. b4 {[%emt 0:05:50]} Qd7 {[%emt 0:03:00]} 10. b5 {[%emt 0:01:01]} Na5 {[%emt 0:01:35]} 11. Bd2 $146 {[%emt 0:04:02]} ({Predecessor:} 11. c5 a6 12. cxd6 Bxd6 13. d4 exd4 14. Qxd4 axb5 15. Rxb5 Be7 16. Bf4 {0-1 (25) Ekdyshman,M (2362)-Vajda,L (2554) Zalakaros 2015}) 11... Bh3 {[%emt 0:09:24]} (11... a6 $14) 12. Nd5 {[%emt 0:14:09]} Bxg2 {[%emt 0:01:02]} 13. Kxg2 {[%emt 0:00:12]} Nxd5 {[%emt 0:00:39]} 14. cxd5 {[%emt 0:00:06]} b6 {[%emt 0:00:09] [#]} 15. Bxa5 $1 {[%emt 0:00:11]} bxa5 {[%emt 0:00:03]} 16. Qd2 {[%emt 0:00:31]} f5 {[%emt 0:14:16]} 17. Qxa5 {[%emt 0:00:58]} g5 {[%emt 0:00:19]} 18. Qb4 {[%emt 0:02:46]} g4 {[%emt 0:13:17]} 19. Nd2 {[%emt 0:00:50]} Bg5 {[%emt 0:09:58]} 20. f4 {[%emt 0:09:51]} gxf3+ {[%emt 0:08:51]} 21. Rxf3 {[%emt 0:04:11]} a6 {[%emt 0:23:17] [#]} 22. bxa6 {[%emt 0:04:32]} (22. b6 $1 $18) 22... Rxa6 {[%emt 0:00:06]} 23. Rb2 {[%emt 0:02:16]} Ra4 {[%emt 0:01:17]} 24. Qb3 {[%emt 0:02:28]} Rfa8 {[%emt 0:02:19]} 25. Nc4 {[%emt 0:04:41]} Kg7 {[%emt 0:00:37]} 26. Rf1 {[%emt 0:03:01]} (26. e4 $142) 26... R4a7 {[%emt 0:02:26]} 27. a3 {[%emt 0:03:38]} Bf6 {[%emt 0:01:53]} (27... f4 $16) 28. e4 {[%emt 0:03:24]} fxe4 {[%emt 0:00:31]} 29. dxe4 {[%emt 0:00:03]} Qg4 {[%emt 0:00:25]} 30. Qd3 {[%emt 0:03:49]} h5 {[%emt 0:00:55]} 31. Ne3 {[%emt 0:05:38]} Qd7 {[%emt 0:00:40]} 32. Nf5+ $18 {[%emt 0:00:33]} Kg6 {[%emt 0:00:27]} 33. Rb3 {[%emt 0:00:25]} Ra4 {[%emt 0:00:41]} 34. h4 {[%emt 0:01:38]} R4a7 {[%emt 0:00:46]} 35. Qe3 {[%emt 0:00:47]} Qh7 {[%emt 0:00:07]} 36. Qf3 {[%emt 0:00:21]} Rf8 {[%emt 0:00:29]} 37. Qf2 {[%emt 0:01:42]} Ra4 {[%emt 0:00:48]} 38. Rf3 {[%emt 0:00:53]} Qd7 {[%emt 0:00:06]} 39. Qe3 {[%emt 0:01:22]} Qh7 {[%emt 0:00:24]} 40. Nxd6 {[%emt 0:00:00]} Qe7 {[%emt 0:00:00]} 41. Rxf6+ {[%emt 0:04:14]} 1-0

[Event "ROU-chT Women Superliga 2018"]
[Site "Sovata"]
[Date "2018.11.28"]
[Round "4"]
[White "Ionica, Iulia-Ionela"]
[Black "Bucur, Denisa-Andreea"]
[Result "1-0"]
[ECO "B43"]
[WhiteElo "2139"]
[BlackElo "2012"]
[Annotator "NA RC"]
[PlyCount "79"]
[EventDate "2018.11.24"]
[EventType "team-tourn"]
[EventCountry "ROU"]
[SourceTitle "playchess.com"]
[Source "ChessBase"]
[SourceQuality "1"]
[TimeControl "40/5400+30:1800+30"]

1. e4 {[%emt 0:00:00]} c5 {[%emt 0:00:00]} 2. Nf3 {[%emt 0:00:00]} e6 {[%emt 0:00:00]} 3. d4 {[%emt 0:00:33]} cxd4 {[%emt 0:00:03]} 4. Nxd4 {[%emt 0:00:08]} a6 {[%emt 0:00:12]} 5. Nc3 {[%emt 0:00:46]} Qc7 {[%emt 0:00:14]} 6. g3 {[%emt 0:00:35]} Nf6 {[%emt 0:01:54]} 7. Bg2 {[%emt 0:00:08]} Nc6 {[%emt 0:00:35]} 8. O-O {[%emt 0:03:26]} Be7 {[%emt 0:06:00]} 9. Re1 {[%emt 0:02:12]} d6 {[%emt 0:01:57]} 10. Nxc6 {[%emt 0:02:34]} bxc6 {[%emt 0:00:46]} 11. e5 {[%emt 0:00:58]} dxe5 {[%emt 0:14:56]} 12. Rxe5 {[%emt 0:01:38]} O-O {[%emt 0:02:56]} 13. Bf4 {[%emt 0:07:18]} Bd6 {[%emt 0:08:05] B80: Sicilian Scheveningen: 6 g3 and 6 Be3, including English Attack} (13... Qb7 14. Na4 Rd8 15. Qf3 Nd5 16. Bd2 Bf6 17. Re4 e5 18. Rae1 Ne7 19. Ba5 Rd5 20. Bc3 Bf5 21. Rb4 Qc7 22. Nb6 {1-0 (35) Movsesian,S (2651)-Sakaev,K (2647) Panormo 2002}) 14. Rxe6 {[%emt 0:02:23]} Bxe6 15. Bxd6 {[%emt 0:00:59]} Qb6 {[%emt 0:31:20]} 16. Bxf8 {[%emt 0:01:20]} Rxf8 {[%emt 0:00:02]} 17. b3 {[%emt 0:04:10]} Rd8 {[%emt 0:04:08]} 18. Qe1 {[%emt 0:08:36]} Bf5 {[%emt 0:05:42]} 19. Rc1 $146 {[%emt 0:05:03]} ({Predecessor:} 19. Na4 Qd4 20. c3 Qd6 21. Bf3 Re8 22. Qd1 Qe5 23. Bxc6 Rc8 24. Bf3 Ne4 25. Qe1 Re8 26. Qe3 h6 27. Bg2 Qd6 28. Qd4 {1-0 (28) Firat,B (2416)-Ladopoulos,D (2051) Kavala 2013}) 19... h6 {[%emt 0:04:36]} 20. h3 {[%emt 0:08:10]} Re8 {[%emt 0:02:57]} 21. Qd2 {[%emt 0:02:30]} Qa5 {[%emt 0:06:04]} 22. Rd1 {[%emt 0:01:57]} c5 {[%emt 0:02:35]} 23. a4 {[%emt 0:06:02]} Qb4 {[%emt 0:02:12]} 24. g4 {[%emt 0:08:34]} Be6 $16 {[%emt 0:01:57]} 25. Ne2 {[%emt 0:03:48]} Qb6 {[%emt 0:01:20]} 26. Ng3 {[%emt 0:00:33]} c4 {[%emt 0:00:37]} 27. b4 {[%emt 0:00:33]} Bd7 {[%emt 0:01:12]} 28. a5 {[%emt 0:02:55]} Qb5 {[%emt 0:00:19]} 29. c3 {[%emt 0:03:05]} Bc6 {[%emt 0:00:42]} 30. Qf4 {[%emt 0:01:11]} Bxg2 {[%emt 0:00:30]} 31. Kxg2 {[%emt 0:00:04]} Qc6+ {[%emt 0:00:52]} 32. Qf3 {[%emt 0:00:22]} Qe6 {[%emt 0:00:41]} 33. Rd4 {[%emt 0:01:44]} Nh7 {[%emt 0:00:20]} 34. Qd5 {[%emt 0:01:11]} Qe1 {[%emt 0:00:39]} 35. Qxc4 {[%emt 0:01:06]} Ng5 {[%emt 0:00:11]} 36. h4 {[%emt 0:01:52]} Ne6 {[%emt 0:00:03]} 37. Re4 {[%emt 0:01:46]} Qc1 {[%emt 0:00:06]} 38. Ne2 {[%emt 0:01:19]} Qb1 {[%emt 0:00:23]} 39. Nf4 {[%emt 0:01:34]} Nxf4+ {[%emt 0:01:05]} 40. Rxf4 {[%emt 0:00:00]} 1-0

[Event "ROU-chT Women Superliga 2018"]
[Site "Sovata"]
[Date "2018.11.28"]
[Round "4"]
[White "Yugina, Maria"]
[Black "Raeva, Elitsa"]
[Result "0-1"]
[ECO "A46"]
[WhiteElo "2129"]
[BlackElo "2252"]
[Annotator "NA RC"]
[PlyCount "78"]
[EventDate "2018.11.24"]
[EventType "team-tourn"]
[EventCountry "ROU"]
[SourceTitle "playchess.com"]
[Source "ChessBase"]
[SourceQuality "1"]
[TimeControl "40/5400+30:1800+30"]

1. d4 {[%emt 0:00:00]} Nf6 {[%emt 0:00:00]} 2. Nf3 {[%emt 0:00:00]} e6 {[%emt 0:00:00]} 3. e3 {[%emt 0:00:14]} b6 {[%emt 0:01:15]} 4. Bd3 {[%emt 0:00:21]} Bb7 {[%emt 0:00:07]} 5. O-O {[%emt 0:00:56]} Be7 {[%emt 0:00:27]} 6. b3 {[%emt 0:00:34]} O-O {[%emt 0:00:26]} 7. Bb2 {[%emt 0:00:14]} Ne4 {[%emt 0:03:12]} 8. Nbd2 {[%emt 0:03:32] A47: 1 d4 Nf6 2 Nf3 b6: Torre, London and Colle Systems} f5 {[%emt 0:00:15]} 9. c4 {[%emt 0:03:31]} d5 {[%emt 0:00:06]} 10. Rc1 {[%emt 0:03:53]} Nd7 {[%emt 0:03:32]} 11. Qe2 {[%emt 0:07:18]} a5 {[%emt 0:05:18]} (11... Bd6 12. Rfd1 Qe7 13. Ne5 Nxd2 14. Qxd2 Nxe5 15. dxe5 Bb4 16. Qc2 Bc5 17. Bd4 Ba3 18. Bb2 Bxb2 19. Qxb2 {0-1 (69) Danielian,E (2497)-Dzagnidze,N (2516) Beijing 2011}) 12. a3 {[%emt 0:19:24]} Bd6 {[%emt 0:09:22]} 13. Ne5 {[%emt 0:01:29]} (13. Rfd1 $11) 13... Bxe5 {[%emt 0:05:29]} 14. dxe5 {[%emt 0:00:21]} Ndc5 $146 {[%emt 0:00:10]} ({Predecessor:} 14... Nxd2 15. Qxd2 {0-1 (44) Rossetto,H-Stahlberg,G Buenos Aires 1947}) 15. cxd5 $2 {[%emt 0:16:10]} (15. Nxe4 $17 fxe4 16. Bc2) 15... Nxd2 {[%emt 0:01:31]} 16. Qxd2 {[%emt 0:09:49]} Qxd5 {[%emt 0:00:26]} 17. f3 {[%emt 0:00:21]} Qxd3 {[%emt 0:10:12]} 18. Qxd3 {[%emt 0:00:51]} Nxd3 {[%emt 0:00:15]} 19. Rxc7 {[%emt 0:00:18]} Bd5 {[%emt 0:06:26]} ({Resist} 19... Nxb2 20. Rxb7 Rab8 21. Rc7 $19) 20. Bd4 {[%emt 0:01:11]} Nc5 {[%emt 0:01:16]} ({Not} 20... Bxb3 21. Rc3 $19) 21. Bxc5 {[%emt 0:08:37]} bxc5 {[%emt 0:00:06]} 22. Rxc5 {[%emt 0:02:57]} Bxb3 {[%emt 0:00:08]} 23. Rfc1 {[%emt 0:00:09]} a4 {[%emt 0:00:48]} 24. Kf2 {[%emt 0:00:47]} Rfd8 {[%emt 0:00:21]} 25. Rc7 {[%emt 0:00:37]} Rd2+ {[%emt 0:01:24]} 26. Kg3 {[%emt 0:00:07]} Rad8 {[%emt 0:00:38]} 27. h4 {[%emt 0:01:55]} h6 {[%emt 0:00:14]} 28. h5 {[%emt 0:00:18]} Kf8 {[%emt 0:03:22]} 29. Kh3 {[%emt 0:02:17]} R8d7 {[%emt 0:03:21]} 30. Rc8+ {[%emt 0:00:18]} Kf7 {[%emt 0:00:07]} 31. R1c6 {[%emt 0:00:52]} R2d3 {[%emt 0:01:02]} 32. f4 {[%emt 0:02:15]} Rxe3+ {[%emt 0:00:46]} 33. g3 {[%emt 0:00:40]} Red3 {[%emt 0:01:02]} 34. Rb6 {[%emt 0:00:21]} Rd1 {[%emt 0:04:14]} 35. Kg2 {[%emt 0:04:34]} Bd5+ {[%emt 0:05:59]} (35... R7d2+ $142 36. Kf3 Bd5+ 37. Ke3 Rd3+ {[%mdl 64] Double Attack} 38. Kf2 R1d2+ 39. Kf1 Ra2 40. Rb1 Rf3+ 41. Ke1 Rxg3 42. Rc7+ Kg8 43. Rb8+ Kh7 44. Rh8+ {[%mdl 64] Decoy} Kxh8 45. Rc8+ Kh7 46. Rc2 Rxc2 47. Kf1 Rh3 48. Kg1 Rh1#) 36. Kf2 {[%emt 0:00:15]} Rh1 $19 {[%emt 0:00:43]} 37. Rb4 {[%emt 0:01:36]} Rxh5 {[%emt 0:01:48]} 38. Rxa4 {[%emt 0:00:15]} Rh2+ {[%emt 0:00:13]} 39. Ke1 {[%emt 0:01:01]} Bb3 {[%emt 0:00:28]} 0-1

[Event "ROU-chT Women Superliga 2018"]
[Site "Sovata"]
[Date "2018.11.28"]
[Round "4"]
[White "Lehaci, Miruna-Daria"]
[Black "Nastase, Andreea-Cristina"]
[Result "1-0"]
[ECO "B50"]
[WhiteElo "2067"]
[BlackElo "1900"]
[Annotator "NA"]
[PlyCount "79"]
[EventDate "2018.11.24"]
[EventType "team-tourn"]
[EventCountry "ROU"]
[SourceTitle "playchess.com"]
[Source "ChessBase"]
[SourceQuality "1"]
[TimeControl "40/5400+30:1800+30"]

1. e4 {[%emt 0:00:00]} c5 {[%emt 0:00:00]} 2. Nf3 {[%emt 0:00:00]} d6 {[%emt 0:00:00]} 3. Bc4 {[%emt 0:00:00]} Nf6 {[%emt 0:00:00]} 4. d3 {[%emt 0:00:00]} e6 {[%emt 0:02:23]} 5. O-O {[%emt 0:00:21]} Nc6 {[%emt 0:00:16]} 6. c3 {[%emt 0:00:18]} Be7 {[%emt 0:00:35]} 7. Bb3 {[%emt 0:00:50]} O-O {[%emt 0:00:27]} 8. Re1 {[%emt 0:00:18]} Ne5 {[%emt 0:07:58] B50: Sicilian: 2...d6, Miscellaneous} (8... e5 9. Nbd2 b5 10. a4 b4 11. Nc4 Rb8 12. Bg5 Be6 13. Rb1 Nd7 14. Bxe7 Qxe7 15. Nfd2 Nf6 16. a5 Qc7 {½-½ (49) Artemiev,V (2697)-Nepomniachtchi,I (2751) Moscow 2018}) 9. d4 {[%emt 0:04:59]} Nxf3+ {[%emt 0:07:59]} 10. Qxf3 {[%emt 0:00:04]} cxd4 {[%emt 0:00:05]} 11. cxd4 {[%emt 0:00:07]} e5 {[%emt 0:11:09]} 12. dxe5 {[%emt 0:00:10]} dxe5 {[%emt 0:00:06]} 13. Nc3 {[%emt 0:03:25]} Be6 {[%emt 0:19:11]} 14. Bg5 {[%emt 0:09:54]} Nd7 {[%emt 0:09:28] [#]} 15. Be3 $146 {[%emt 0:11:07]} ({Predecessor:} 15. Bxe6 fxe6 16. Bxe7 Qxe7 {½-½ (28) David,A (2586)-Cebalo,M (2304) Bratto 2017}) 15... Bxb3 {[%emt 0:05:13]} 16. axb3 {[%emt 0:00:40]} Bb4 {[%emt 0:00:40]} 17. Red1 {[%emt 0:03:43]} Bxc3 {[%emt 0:00:58]} 18. bxc3 {[%emt 0:00:12]} Qc7 {[%emt 0:00:54]} 19. c4 {[%emt 0:13:57]} (19. Bxa7 $2 b6 $17) ({Inferior is} 19. Rxa7 Rxa7 20. Bxa7 b6 $17) 19... a5 {[%emt 0:01:25]} 20. Rd5 {[%emt 0:04:57]} Nf6 {[%emt 0:08:11]} 21. Rc5 {[%emt 0:01:16]} Qe7 {[%emt 0:00:42]} 22. Rb5 {[%emt 0:03:44]} Rfc8 {[%emt 0:03:10]} 23. Qf5 {[%emt 0:01:31]} Qd6 {[%emt 0:04:45]} (23... Re8 $16 {keeps fighting.}) 24. h3 {[%emt 0:10:02]} a4 {[%emt 0:00:58]} 25. Rxa4 {[%emt 0:04:04]} g6 {[%emt 0:05:29]} 26. Qxe5 {[%emt 0:01:53]} (26. Rxa8 $18 Rxa8 27. Qf3) 26... Qxe5 {[%emt 0:00:48]} 27. Rxe5 {[%emt 0:00:04]} Rxa4 {[%emt 0:00:02]} 28. bxa4 {[%emt 0:00:05]} Rxc4 {[%emt 0:00:23]} 29. a5 {[%emt 0:01:36]} Rxe4 {[%emt 0:05:14]} 30. Rb5 {[%emt 0:00:10]} Re7 {[%emt 0:00:16]} 31. Bg5 {[%emt 0:00:08]} Kg7 {[%emt 0:00:03]} 32. Rb6 {[%emt 0:00:27]} Re1+ {[%emt 0:00:04]} 33. Kh2 {[%emt 0:00:05]} Ne4 {[%emt 0:01:27]} 34. Be3 {[%emt 0:00:05]} Kf8 {[%emt 0:03:37]} 35. Rxb7 {[%emt 0:00:50]} Ra1 {[%emt 0:00:05]} 36. Ra7 {[%emt 0:01:04]} Ra2 {[%emt 0:00:23]} 37. a6 {[%emt 0:00:53]} Nxf2 {[%emt 0:01:31]} 38. Ra8+ {[%emt 0:00:06]} Ke7 {[%emt 0:00:04]} 39. a7 {[%emt 0:00:05]} Nd1 {[%emt 0:00:53]} 40. Bd4 {[%emt 0:00:00]} 1-0

[Event "ROU-chT Women Superliga 2018"]
[Site "Sovata"]
[Date "2018.11.28"]
[Round "4"]
[White "Aciu, Malina-Andreea"]
[Black "Matasaru, Stephanie"]
[Result "1/2-1/2"]
[ECO "B22"]
[WhiteElo "1976"]
[BlackElo "1859"]
[Annotator "NA"]
[PlyCount "55"]
[EventDate "2018.11.24"]
[EventType "team-tourn"]
[EventCountry "ROU"]
[SourceTitle "playchess.com"]
[Source "ChessBase"]
[SourceQuality "1"]
[TimeControl "40/5400+30:1800+30"]

1. e4 {[%emt 0:00:00]} c5 {[%emt 0:00:00]} 2. c3 {[%emt 0:00:00]} Nf6 {[%emt 0:00:00]} 3. e5 {[%emt 0:00:00]} Nd5 {[%emt 0:00:00]} 4. d4 {[%emt 0:00:00]} cxd4 {[%emt 0:00:03]} 5. Nf3 {[%emt 0:00:00]} Nc6 {[%emt 0:00:11]} 6. cxd4 {[%emt 0:00:00]} d6 {[%emt 0:00:19]} 7. Bc4 {[%emt 0:00:02]} Nb6 {[%emt 0:00:08]} 8. Bb3 {[%emt 0:00:05]} dxe5 {[%emt 0:00:22]} 9. d5 {[%emt 0:00:05]} Na5 {[%emt 0:00:13]} 10. Nc3 {[%emt 0:00:04]} Nxb3 {[%emt 0:00:14]} 11. Qxb3 {[%emt 0:00:06]} e6 {[%emt 0:01:10]} 12. Nxe5 {[%emt 0:00:09]} Bd6 {[%emt 0:01:24] B22: Sicilian: 2 c3} (12... Nxd5 13. Qb5+ Bd7 14. Qxb7 Bb4 15. Nxd7 Qc8 16. Nc5 Qxb7 17. Nxb7 Rb8 18. Nd6+ Bxd6 19. Nxd5 exd5 20. O-O {½-½ (31) Stevic,H (2624)-Markus,R (2625) Ljubljana 2012}) 13. Qb5+ {[%emt 0:00:39]} Kf8 {[%emt 0:00:56]} 14. dxe6 {[%emt 0:01:37]} Bxe6 {[%emt 0:00:42]} 15. Be3 {[%emt 0:12:48]} Qc7 {[%emt 0:09:40]} 16. Nf3 {[%emt 0:03:03]} Nc4 {[%emt 0:17:15]} 17. O-O $146 {[%emt 0:42:38]} ({Predecessor:} 17. Bd4 a6 18. Qg5 Rg8 19. O-O h6 20. Qh5 {½-½ (33) Jonker,F (2141)-Hoeksema,H (2373) Dieren 2006}) 17... Nxe3 {[%emt 0:08:27]} 18. fxe3 {[%emt 0:00:04]} Bc4 {[%emt 0:01:11]} 19. Qf5 {[%emt 0:00:23]} Bxf1 {[%emt 0:01:28]} 20. Rxf1 {[%emt 0:00:08]} Qc8 {[%emt 0:05:37]} 21. Qh5 {[%emt 0:02:27]} Qc4 {[%emt 0:06:39]} 22. Nd5 {[%emt 0:05:56]} f6 {[%emt 0:05:33]} 23. Ng5 $15 {[%emt 0:07:52]} ({White should play} 23. Nd4 $18 Re8 {[#]} 24. Nxf6 $1 {[%mdl 512]} gxf6 25. Rxf6+ {[%mdl 64] Double Attack} Ke7 26. Qh4) 23... Bxh2+ {[%emt 0:10:11]} 24. Kxh2 {[%emt 0:02:09]} Qxd5 {[%emt 0:00:33]} 25. Nxh7+ {[%emt 0:05:34]} Rxh7 {[%emt 0:00:08]} 26. Qxh7 {[%emt 0:00:03]} Qe5+ {[%emt 0:02:12]} 27. Kh1 {[%emt 0:01:27]} Re8 {[%emt 0:05:13]} 28. Rf3 {[%emt 0:02:10]} 1/2-1/2

[Event "ROU-chT Women Superliga 2018"]
[Site "Sovata"]
[Date "2018.11.28"]
[Round "4"]
[White "Stanciu, Andreea-Briana"]
[Black "Pelin, Ana-Maria"]
[Result "1/2-1/2"]
[ECO "B42"]
[WhiteElo "1953"]
[BlackElo "1751"]
[Annotator "NA"]
[PlyCount "40"]
[EventDate "2018.11.24"]
[EventType "team-tourn"]
[EventCountry "ROU"]
[SourceTitle "playchess.com"]
[Source "ChessBase"]
[SourceQuality "1"]
[TimeControl "40/5400+30:1800+30"]

1. e4 {[%emt 0:00:00]} c5 {[%emt 0:00:50]} 2. Nf3 {[%emt 0:00:00]} e6 {[%emt 0:00:16]} 3. d4 {[%emt 0:00:00]} cxd4 {[%emt 0:00:05]} 4. Nxd4 {[%emt 0:00:00]} a6 {[%emt 0:00:18]} 5. Bd3 {[%emt 0:00:03]} Qc7 {[%emt 0:00:17]} 6. Nc3 {[%emt 0:00:17]} Nf6 {[%emt 0:00:27]} 7. O-O {[%emt 0:00:25]} Nc6 {[%emt 0:01:26]} 8. Nxc6 {[%emt 0:02:39]} bxc6 {[%emt 0:00:42]} 9. f4 {[%emt 0:01:40]} d5 {[%emt 0:04:38]} 10. e5 {[%emt 0:02:08]} Nd7 {[%emt 0:01:30] B46: Sicilian: Taimanov: 5 Nc3 a6} 11. Qg4 {[%emt 0:03:26]} Bc5+ {[%emt 0:06:37]} 12. Kh1 {[%emt 0:02:41]} O-O {[%emt 0:02:07]} 13. Rf3 $146 {[%emt 0:01:10]} ({Predecessor:} 13. Bd2 f5 14. exf6 Nxf6 15. Qh4 {1-0 (38) Naiditsch,A (2687)-Stratonowitsch,A (2138) Doha 2016}) 13... f5 {[%emt 0:06:49]} 14. Qh3 {[%emt 0:04:03]} Rf7 {[%emt 0:04:44]} 15. g4 {[%emt 0:02:19]} Nf8 {[%emt 0:02:13]} 16. gxf5 {[%emt 0:01:36]} exf5 {[%emt 0:00:10]} 17. Bd2 {[%emt 0:01:01]} a5 {[%emt 0:09:57]} 18. Re1 {[%emt 0:04:36]} Be6 {[%emt 0:02:53]} 19. Ne2 $17 {[%emt 0:03:11]} a4 {[%emt 0:11:50]} 20. c3 {[%emt 0:01:14]} Qa7 {[%emt 0:04:27]} 1/2-1/2

[Event "ROU-chT Women Superliga 2018"]
[Site "Sovata"]
[Date "2018.11.28"]
[Round "4"]
[White "Anton, Ana-Roxana"]
[Black "Visanescu, Daria-Ioana"]
[Result "0-1"]
[ECO "D02"]
[WhiteElo "1860"]
[BlackElo "2096"]
[Annotator "NA"]
[PlyCount "68"]
[EventDate "2018.11.24"]
[EventType "team-tourn"]
[EventCountry "ROU"]
[SourceTitle "playchess.com"]
[Source "ChessBase"]
[SourceQuality "1"]
[TimeControl "40/5400+30:1800+30"]

1. d4 {[%emt 0:00:00]} d5 {[%emt 0:02:06]} 2. Nf3 {[%emt 0:00:00]} e6 {[%emt 0:00:29]} 3. Bf4 {[%emt 0:00:19]} Nf6 {[%emt 0:00:07]} 4. e3 {[%emt 0:00:22]} Bd6 {[%emt 0:00:27]} 5. Bg5 {[%emt 0:05:36]} Nbd7 {[%emt 0:03:00]} 6. Bd3 {[%emt 0:00:24]} Be7 {[%emt 0:03:54]} 7. Nbd2 {[%emt 0:01:40]} c5 {[%emt 0:00:29] D03: 1 d4 d5 2 Nf3 Nf6 3 Bg5, including Torre Attack with early ...d5} (7... b6 8. c3 Bb7 9. O-O O-O 10. b4 h6 11. Bf4 c5 12. Qb1 cxb4 13. cxb4 Nh5 14. Be5 Nhf6 15. Bg3 Nh5 16. Be5 Nhf6 17. Bf4 Nh5 18. Be5 {½-½ (17) Andreikin,D (2710)-Oparin,G (2609) Satka 2018}) 8. c4 {[%emt 0:10:52]} h6 {[%emt 0:01:59]} 9. Bh4 {[%emt 0:01:42]} b6 {[%emt 0:01:20]} 10. b3 {[%emt 0:12:03]} Bb7 {[%emt 0:00:31]} 11. Qc2 {[%emt 0:03:35]} Rc8 {[%emt 0:00:36]} 12. O-O {[%emt 0:03:34]} O-O {[%emt 0:01:14]} 13. Rac1 {[%emt 0:06:27]} b5 $146 {[%emt 0:07:15]} ({Predecessor:} 13... Nh5 14. Bxe7 Qxe7 15. Rfe1 Nhf6 16. e4 dxe4 17. Nxe4 Nxe4 18. Bxe4 Nf6 19. Bxb7 Qxb7 {½-½ (34) Vaitonis,V (2029)-Barsciauskas,G (1891) Klaipeda 2011}) 14. Qb1 {[%emt 0:02:01]} bxc4 {[%emt 0:08:07]} 15. bxc4 {[%emt 0:00:41]} Ba8 {[%emt 0:00:05]} 16. h3 {[%emt 0:14:30]} cxd4 {[%emt 0:03:25]} 17. exd4 {[%emt 0:01:52]} dxc4 {[%emt 0:00:21]} 18. Bxc4 {[%emt 0:00:54]} Nb6 {[%emt 0:00:55]} 19. Bb3 {[%emt 0:01:08]} Nbd5 {[%emt 0:02:41]} 20. Rxc8 {[%emt 0:03:48]} Qxc8 {[%emt 0:00:05]} 21. Bg3 {[%emt 0:05:21]} Rd8 {[%emt 0:02:22]} 22. Rc1 {[%emt 0:01:28]} Nc3 {[%emt 0:01:09]} 23. Qd3 {[%emt 0:00:16]} Ne2+ {[%emt 0:00:11]} 24. Qxe2 {[%emt 0:00:51]} Qxc1+ {[%emt 0:00:04]} 25. Kh2 {[%emt 0:00:24]} Nd5 {[%emt 0:01:07]} 26. Nc4 {[%emt 0:10:01]} Nc3 {[%emt 0:01:34]} 27. Qe3 {[%emt 0:01:05]} Qxe3 {[%emt 0:02:05]} 28. fxe3 {[%emt 0:00:06]} Ne2 {[%emt 0:01:08]} 29. Be1 {[%emt 0:03:10]} Nc1 {[%emt 0:00:29]} 30. Nfd2 {[%emt 0:02:08]} Nxb3 $19 {[%emt 0:01:12]} 31. axb3 {[%emt 0:01:25]} Bb4 {[%emt 0:00:20]} 32. Kg3 {[%emt 0:02:20]} Bd5 {[%emt 0:00:26]} 33. Kf2 {[%emt 0:00:46]} Rc8 {[%emt 0:01:49]} 34. g3 {[%emt 0:02:32]} Bxd2 {[%emt 0:01:15]} 0-1

[Event "ROU-chT Women Superliga 2018"]
[Site "Sovata"]
[Date "2018.11.28"]
[Round "4"]
[White "Cristocea, Gabriela"]
[Black "Sandu, Mihaela"]
[Result "0-1"]
[ECO "E10"]
[WhiteElo "1843"]
[BlackElo "2308"]
[Annotator "NA RC"]
[PlyCount "44"]
[EventDate "2018.11.24"]
[EventType "team-tourn"]
[EventCountry "ROU"]
[SourceTitle "playchess.com"]
[Source "ChessBase"]
[SourceQuality "1"]
[TimeControl "40/5400+30:1800+30"]

1. d4 {[%emt 0:00:00]} Nf6 {[%emt 0:00:00]} 2. c4 {[%emt 0:00:00]} e6 {[%emt 0:00:00]} 3. Nf3 {[%emt 0:00:00]} d5 {[%emt 0:00:00]} 4. Bf4 {[%emt 0:01:07]} Be7 {[%emt 0:00:13]} 5. e3 {[%emt 0:00:32]} O-O {[%emt 0:00:12]} 6. Nc3 {[%emt 0:00:55]} c5 {[%emt 0:01:51]} 7. cxd5 {[%emt 0:00:58]} Nxd5 {[%emt 0:01:05]} 8. Nxd5 {[%emt 0:00:31] D37: Queen's Gambit Declined: 5 Bf4} Qxd5 {[%emt 0:00:06]} 9. a3 {[%emt 0:04:00]} Nc6 {[%emt 0:03:07]} (9... cxd4 10. Qxd4 Qxd4 11. Nxd4 Bf6 12. Bg3 Bxd4 13. exd4 Rd8 14. O-O-O b6 15. Bh4 Rd6 16. Bg3 Rd8 17. Bh4 {½-½ (17) Edouard,R (2641)-Hammer,J (2689) Drancy 2016}) 10. dxc5 {[%emt 0:00:52]} Qxc5 {[%emt 0:01:23]} 11. Rc1 {[%emt 0:04:37]} Qa5+ {[%emt 0:04:41]} 12. Qd2 {[%emt 0:02:03]} Qxd2+ {[%emt 0:00:53]} 13. Nxd2 {[%emt 0:00:06]} Bf6 {[%emt 0:14:53]} 14. Rc2 $146 {[%emt 0:04:58]} ({Predecessor:} 14. Nc4 e5 15. Bg3 Be6 16. Be2 e4 17. b4 Ne7 {½-½ (18) Tschann,S (2214)-Gasthofer,A (2458) Germany 2010}) 14... e5 {[%emt 0:00:38]} 15. Bg3 {[%emt 0:00:07]} Bf5 {[%emt 0:00:45]} 16. Rc1 {[%emt 0:05:47]} Rac8 {[%emt 0:03:30]} 17. Be2 {[%emt 0:04:26]} Rfd8 {[%emt 0:17:22]} 18. Bf3 {[%emt 0:10:41]} Bd3 {[%emt 0:17:43]} (18... e4 $17 19. Bxe4 Bxe4 20. Nxe4 Bxb2 {[%mdl 64] Double Attack}) 19. Be4 {[%emt 0:03:19] [#]} Nd4 $1 {[%emt 0:03:37]} 20. Rxc8 {[%emt 0:01:36]} Rxc8 {[%emt 0:00:08]} 21. Bf3 {[%emt 0:27:29]} (21. f4 $19 exf4 22. Bxf4 Bh4+ 23. g3 Bxe4 24. Nxe4 Rc1+ 25. Kf2 Rxh1 26. exd4) 21... Rc1+ {[%emt 0:00:35]} 22. Bd1 {[%emt 0:00:05]} Nc2# {[%emt 0:00:18]} 0-1